[Event "ISR-ch Women 2018"]
[Site "Ma'alot-Tarshih"]
[Date "2018.12.17"]
[Round "6"]
[White "Nesterovskaya, Anzhelika"]
[Black "Lahav, Michal"]
[Result "1-0"]
[ECO "B22"]
[WhiteElo "2130"]
[BlackElo "2059"]
[Annotator "NA"]
[PlyCount "105"]
[EventDate "2018.12.12"]
[EventType "swiss"]
[EventCountry "ISR"]
[SourceTitle "playchess.com"]
[Source "ChessBase"]
[SourceQuality "1"]
[TimeControl "40/5400+30:1800+30"]

1. e4 {[%emt 0:00:00]} e6 {[%emt 0:00:00]} 2. d4 {[%emt 0:00:00]} d5 {[%emt 0:00:00]} 3. Nd2 {[%emt 0:00:00]} Be7 {[%emt 0:00:51]} 4. Bd3 {[%emt 0:00:10]} c5 {[%emt 0:00:18]} 5. c3 {[%emt 0:00:25]} cxd4 {[%emt 0:04:23]} 6. cxd4 {[%emt 0:00:06]} dxe4 {[%emt 0:00:32]} 7. Nxe4 {[%emt 1:32:49]} Nf6 {[%emt 0:07:31]} 8. Nf3 {[%emt 0:00:00]} Nc6 {[%emt 0:00:54]} 9. O-O {[%emt 0:00:00] LiveBook: 87 Games} O-O {[%emt 0:00:12]} 10. Ng3 {[%emt 0:00:00] B22: Sicilian: 2 c3} Nb4 {[%emt 0:02:10]} 11. Bb1 {[%emt 0:00:00]} b6 {[%emt 0:00:50]} 12. a3 {[%emt 0:00:00]} Nbd5 {[%emt 0:02:40]} 13. Qe2 {[%emt 0:00:00]} Bb7 {[%emt 0:03:04]} 14. Bd2 $146 {[%emt 0:00:00]} ({Predecessor:} 14. Rd1 Rc8 15. Bd3 Rc7 16. Bd2 Qd6 17. Ne5 Rfc8 18. Rac1 {0-1 (39) Vlatkovic,M (2310)-Perunovic,M (2550) Sozina 2004}) 14... Rc8 {[%emt 0:01:30]} 15. Ne5 {[%emt 0:00:00]} Nc7 {[%emt 0:06:48]} 16. Qe3 {[%emt 0:00:00]} Nb5 $15 {[%emt 0:10:45]} 17. Ne2 {[%emt 0:00:00]} g6 {[%emt 0:15:09]} 18. Bd3 {[%emt 0:00:00]} Nd6 {[%emt 0:07:56]} 19. Ng3 {[%emt 0:00:00]} Re8 {[%emt 0:06:19]} 20. Rfe1 {[%emt 0:00:00]} Bf8 {[%emt 0:04:35]} 21. Qe2 {[%emt 0:00:00]} Bg7 {[%emt 0:03:10]} 22. Rad1 {[%emt 0:00:00]} Nf5 {[%emt 0:01:46]} 23. Nxf5 {[%emt 0:00:00]} exf5 {[%emt 0:00:57]} 24. Bb5 {[%emt 0:00:00]} Re6 {[%emt 0:04:34]} 25. Bg5 {[%emt 0:00:00]} Qd6 {[%emt 0:03:55]} 26. Bxf6 {[%emt 0:00:00]} Rxf6 {[%emt 0:00:04]} 27. Ba6 {[%emt 0:00:00]} Bxa6 {[%emt 0:02:49]} 28. Qxa6 {[%emt 0:00:00]} Qc7 {[%emt 0:00:02]} 29. d5 {[%emt 0:00:00]} Rd6 {[%emt 0:00:41]} 30. Nc6 {[%emt 0:00:00]} Bf6 {[%emt 0:01:38]} 31. b4 {[%emt 0:03:29]} Kg7 {[%emt 0:00:02]} 32. h3 {[%emt 0:01:04]} Qd7 {[%emt 0:04:55]} 33. Rd3 {[%emt 0:00:15]} Re8 {[%emt 0:03:40]} 34. Red1 {[%emt 0:00:17]} Ra8 {[%emt 0:00:13]} 35. a4 {[%emt 0:00:47]} Qe8 {[%emt 0:00:57]} 36. a5 {[%emt 0:01:59]} bxa5 {[%emt 0:01:13]} 37. Qxa5 {[%emt 0:00:04]} Qd7 {[%emt 0:00:46]} 38. b5 {[%emt 0:00:33]} Qc8 {[%emt 0:00:36]} 39. Qa3 {[%emt 0:02:41]} Rd7 {[%emt 0:00:23]} 40. Qc5 {[%emt 0:00:26]} Qb7 {[%emt 0:00:41]} 41. Ra3 {[%emt 0:31:58]} Bd8 {[%emt 0:02:57]} 42. d6 {[%emt 0:00:00]} Qb6 {[%emt 0:03:03]} 43. Qd5 {[%emt 0:00:00]} Bf6 {[%emt 0:06:33]} 44. Ra6 {[%emt 0:00:00]} Qb7 {[%emt 0:00:48]} 45. Qc4 {[%emt 0:00:00]} Qc8 {[%emt 0:07:09]} 46. Qa4 {[%emt 0:00:00]} Qe8 {[%emt 0:00:09]} 47. b6 {[%emt 0:00:00]} Rc8 {[%emt 0:05:46]} 48. bxa7 {[%emt 0:00:00]} Rxd6 {[%emt 0:01:32]} 49. Rxd6 {[%emt 0:00:00]} Qe1+ {[%emt 0:01:12]} 50. Kh2 {[%emt 0:00:00]} Rxc6 {[%emt 0:05:47]} 51. Rdxc6 {[%emt 0:00:00]} Be5+ {[%emt 0:00:18]} 52. f4 {[%emt 0:00:00]} Qd2 {[%emt 0:00:43]} 53. fxe5 {[%emt 0:00:00]} 1-0

[Event "ISR-ch Women 2018"]
[Site "Ma'alot-Tarshih"]
[Date "2018.12.17"]
[Round "6"]
[White "Haitovich, Avital"]
[Black "Shvayger, Yuliya"]
[Result "0-1"]
[ECO "A04"]
[WhiteElo "1979"]
[BlackElo "2393"]
[Annotator "NA"]
[PlyCount "84"]
[EventDate "2018.12.12"]
[EventType "swiss"]
[EventCountry "ISR"]
[SourceTitle "playchess.com"]
[Source "ChessBase"]
[SourceQuality "1"]
[TimeControl "40/5400+30:1800+30"]

1. Nf3 {[%emt 0:00:00]} c5 {[%emt 0:04:12]} 2. g3 {[%emt 0:00:08]} Nc6 {[%emt 0:00:06]} 3. Bg2 {[%emt 0:00:43]} e5 {[%emt 0:01:24]} 4. d3 {[%emt 0:02:02]} g6 {[%emt 0:01:19]} 5. e4 {[%emt 0:06:50]} Bg7 {[%emt 0:00:37]} 6. O-O {[%emt 0:02:02]} Nge7 {[%emt 0:00:06]} 7. Be3 {[%emt 0:10:46]} d6 {[%emt 0:00:14]} 8. Qd2 {[%emt 0:05:37]} O-O {[%emt 0:05:07]} 9. Bh6 {[%emt 0:02:37]} f5 {[%emt 0:07:27]} 10. c3 {[%emt 0:07:31]} f4 {[%emt 0:02:48]} 11. Bxg7 {[%emt 0:01:16]} Kxg7 {[%emt 0:00:01]} 12. d4 {[%emt 0:07:55]} cxd4 {[%emt 0:11:17]} 13. cxd4 {[%emt 0:02:07]} Bg4 {[%emt 0:00:02] LiveBook: 3 Games} 14. dxe5 {[%emt 0:09:48]} Bxf3 {[%emt 0:09:01]} 15. Bxf3 {[%emt 0:05:40]} Nxe5 {[%emt 0:02:00]} 16. Bh1 {[%emt 0:04:54]} f3 {[%emt 0:00:27]} 17. Rd1 {[%emt 0:05:22]} Rf6 {[%emt 0:00:22]} 18. Nc3 {[%emt 0:05:44]} Qd7 $17 {[%emt 0:00:56]} 19. Qg5 {[%emt 0:14:03]} Rd8 {[%emt 0:00:40]} 20. Nd5 {[%emt 0:00:28]} Nxd5 {[%emt 0:00:52]} 21. Rxd5 {[%emt 0:00:03]} h6 {[%emt 0:12:01]} 22. Qd2 {[%emt 0:00:32]} Re8 {[%emt 0:06:42]} 23. h4 {[%emt 0:03:18]} Qh3 {[%emt 0:07:49]} 24. Rxd6 {[%emt 0:01:53]} Ng4 {[%emt 0:00:01]} 25. Bxf3 {[%emt 0:00:37]} Rxd6 {[%emt 0:07:00]} 26. Bxg4 {[%emt 0:00:26]} Qxg3+ {[%emt 0:01:08]} 27. fxg3 {[%emt 0:00:01]} Rxd2 {[%emt 0:00:09]} 28. b3 {[%emt 0:00:56]} Rxe4 {[%emt 0:00:10]} 29. Bf3 {[%emt 0:00:01]} Re3 {[%emt 0:01:03]} 30. Bxb7 {[%emt 0:00:35]} Rxg3+ {[%emt 0:00:02]} 31. Kf1 {[%emt 0:00:14]} Rh3 {[%emt 0:01:27]} 32. Ke1 {[%emt 0:00:27]} Rb2 {[%emt 0:01:09]} 33. Rc1 {[%emt 0:01:02]} Rxa2 {[%emt 0:00:12]} 34. Rc7+ {[%emt 0:00:05]} Kf8 {[%emt 0:00:53]} 35. Bd5 {[%emt 0:00:46]} Rhh2 {[%emt 0:00:21]} 36. Rc1 {[%emt 0:00:36]} Rxh4 {[%emt 0:00:17]} 37. Kf1 {[%emt 0:00:44]} Rhh2 {[%emt 0:00:55]} 38. Kg1 {[%emt 0:00:12]} Rhd2 {[%emt 0:00:57]} 39. Bc4 {[%emt 0:00:45]} Rg2+ {[%emt 0:01:04]} 40. Kh1 {[%emt 0:00:41]} Rh2+ {[%emt 0:00:10]} 41. Kg1 {[%emt 0:30:05]} Rag2+ {[%emt 0:30:06]} 42. Kf1 {[%emt 0:00:08]} Rh1+ {[%emt 0:00:11]} 0-1

[Event "ISR-ch Women 2018"]
[Site "Ma'alot-Tarshih"]
[Date "2018.12.17"]
[Round "6"]
[White "Buzukashvili, Sofia"]
[Black "Brusilovski, Lena"]
[Result "1-0"]
[ECO "E81"]
[WhiteElo "1963"]
[BlackElo "1886"]
[Annotator "NA"]
[PlyCount "117"]
[EventDate "2018.12.12"]
[EventType "swiss"]
[EventCountry "ISR"]
[SourceTitle "playchess.com"]
[Source "ChessBase"]
[SourceQuality "1"]
[TimeControl "40/5400+30:1800+30"]

1. c4 {[%emt 0:04:27]} Nf6 {[%emt 0:18:56]} 2. d4 {[%emt 0:00:16]} g6 {[%emt 0:02:52]} 3. f3 {[%emt 0:00:20]} Bg7 {[%emt 0:03:56]} 4. e4 {[%emt 0:00:26]} d6 {[%emt 0:01:54]} 5. Nc3 {[%emt 0:00:17]} O-O {[%emt 0:01:15]} 6. Be3 {[%emt 0:00:24]} c6 {[%emt 0:00:42]} 7. Qd2 {[%emt 0:00:46]} Re8 {[%emt 0:00:47]} 8. Nge2 {[%emt 0:01:08]} Qc7 {[%emt 0:01:24]} 9. g4 {[%emt 0:01:28]} e5 {[%emt 0:01:27]} 10. d5 {[%emt 0:00:45]} a5 {[%emt 0:00:33]} 11. Ng3 {[%emt 0:06:16]} Na6 {[%emt 0:02:56]} 12. h4 {[%emt 0:01:55]} Nb4 {[%emt 0:08:20]} (12... Nd7 $16 13. h5 Nac5) 13. h5 {[%emt 0:06:26]} Bxg4 $2 {[%emt 0:00:46]} (13... Nd7 14. O-O-O (14. hxg6 fxg6 15. Qh2 Nf8 $16) 14... Na6) 14. fxg4 {[%emt 0:01:48]} Nxg4 {[%emt 0:00:13]} 15. Rc1 {[%emt 0:05:54]} Nxe3 {[%emt 0:01:58]} 16. Qxe3 {[%emt 0:00:18]} Rac8 {[%emt 0:00:42]} (16... Qe7 $142 17. hxg6 fxg6) 17. Rg1 {[%emt 0:05:14]} Qe7 $18 {[%emt 0:04:02]} 18. a3 {[%emt 0:16:19]} cxd5 {[%emt 0:03:04]} 19. cxd5 {[%emt 0:01:56]} Na6 {[%emt 0:00:26]} 20. Bxa6 {[%emt 0:02:04]} bxa6 {[%emt 0:00:24]} 21. Rc2 {[%emt 0:02:27]} Qh4 {[%emt 0:02:45]} 22. Rf2 {[%emt 0:01:38]} Rc7 {[%emt 0:02:07]} 23. Rh1 {[%emt 0:11:53]} Bh6 {[%emt 0:02:28]} 24. Qxh6 {[%emt 0:02:32]} Qxg3 {[%emt 0:00:33]} 25. hxg6 {[%emt 0:02:32]} fxg6 {[%emt 0:00:12]} 26. Rh3 {[%emt 0:07:29]} Qg1+ {[%emt 0:01:39]} 27. Rf1 {[%emt 0:00:21]} Qg2 {[%emt 0:02:47]} 28. Rhf3 {[%emt 0:00:55]} Rg7 {[%emt 0:00:21]} 29. R1f2 {[%emt 0:04:49]} Qg1+ {[%emt 0:00:35]} 30. Rf1 {[%emt 0:00:15]} Qg2 {[%emt 0:00:08]} 31. R3f2 {[%emt 0:00:26]} Qg3 {[%emt 0:00:16]} 32. Qh2 {[%emt 0:05:11]} Qe3+ {[%emt 0:00:55]} 33. Re2 {[%emt 0:00:35]} Qc1+ {[%emt 0:00:56]} 34. Nd1 {[%emt 0:00:05]} Qb1 {[%emt 0:04:36]} 35. Qh3 {[%emt 0:00:43]} Rc7 {[%emt 0:01:20]} 36. Rh1 {[%emt 0:03:02]} Ree7 {[%emt 0:00:58]} 37. Qh6 {[%emt 0:03:42]} Rc1 {[%emt 0:01:07]} 38. Qd2 {[%emt 0:00:32]} Rec7 {[%emt 0:00:47]} 39. Kf2 {[%emt 0:00:50]} R7c2 {[%emt 0:02:09]} 40. Qd3 {[%emt 0:00:27]} Rxe2+ {[%emt 0:00:29]} 41. Kxe2 {[%emt 0:30:27]} Rc2+ {[%emt 0:30:21]} 42. Ke1 {[%emt 0:00:00]} Qc1 {[%emt 0:00:00]} 43. Rf1 {[%emt 0:00:00]} Rxb2 {[%emt 0:00:00]} 44. Rf2 {[%emt 0:00:00]} Rb8 {[%emt 0:00:00]} 45. Qh3 {[%emt 0:00:00]} Qc8 {[%emt 0:00:00]} 46. Qxc8+ {[%emt 0:00:00]} Rxc8 {[%emt 0:00:00]} 47. Rf6 {[%emt 0:00:00]} Rd8 {[%emt 0:00:00]} 48. Ne3 {[%emt 0:00:00]} Kg7 {[%emt 0:00:00]} 49. Re6 {[%emt 0:00:00]} Rc8 {[%emt 0:00:00]} 50. Kd2 {[%emt 0:00:00]} Kh6 {[%emt 0:00:00]} 51. Rxd6 {[%emt 0:00:00]} Kg5 {[%emt 0:00:00]} 52. Rc6 {[%emt 0:00:00]} Rb8 {[%emt 0:00:00]} 53. d6 {[%emt 0:00:00]} Kf6 {[%emt 0:00:00]} 54. Nc4 {[%emt 0:00:00]} Ke6 {[%emt 0:00:00]} 55. Rxa6 {[%emt 0:00:00]} g5 {[%emt 0:00:00]} 56. Rxa5 {[%emt 0:00:00]} g4 {[%emt 0:00:00]} 57. Rxe5+ {[%emt 0:00:00]} Kf6 {[%emt 0:00:00]} 58. Rf5+ {[%emt 0:00:00]} Kg6 {[%emt 0:00:00]} 59. Ne5+ {[%emt 0:00:00]} 1-0

[Event "ISR-ch Women 2018"]
[Site "Ma'alot-Tarshih"]
[Date "2018.12.17"]
[Round "6"]
[White "Katkov, Michelle"]
[Black "Reprun, Nadejda"]
[Result "0-1"]
[ECO "D40"]
[WhiteElo "1887"]
[BlackElo "2016"]
[Annotator "NA"]
[PlyCount "92"]
[EventDate "2018.12.12"]
[EventType "swiss"]
[EventCountry "ISR"]
[SourceTitle "playchess.com"]
[Source "ChessBase"]
[SourceQuality "1"]
[TimeControl "40/5400+30:1800+30"]

1. e4 {[%emt 0:00:00]} c6 {[%emt 0:00:00]} 2. d4 {[%emt 0:00:09]} d5 {[%emt 0:00:00]} 3. exd5 {[%emt 0:00:09]} cxd5 {[%emt 0:00:00]} 4. c4 {[%emt 0:00:21]} Nf6 {[%emt 0:00:00]} 5. Nc3 {[%emt 0:00:07]} e6 {[%emt 0:00:00]} 6. Bd3 {[%emt 0:00:41]} dxc4 {[%emt 0:00:15]} 7. Bxc4 {[%emt 0:00:06]} Be7 {[%emt 0:01:08]} 8. Nf3 {[%emt 0:00:30]} O-O {[%emt 0:00:13]} 9. O-O {[%emt 0:00:10]} a6 {[%emt 0:01:52]} 10. a3 {[%emt 0:00:31]} b5 {[%emt 0:00:44]} 11. Ba2 {[%emt 0:01:47]} Bb7 {[%emt 0:00:04]} 12. Re1 {[%emt 0:03:04] D40: Queen's Gambit Declined: Semi-Tarrasch with 5 e3} Nbd7 {[%emt 0:03:01]} (12... Nc6 13. d5 exd5 14. Nxd5 Nxd5 15. Bxd5 Bf6 16. Rb1 Na5 17. Bxb7 Nxb7 18. Be3 Qxd1 19. Rexd1 Rfc8 20. g4 Na5 {½-½ (56) Gashimov,V (2733)-Ivanchuk,V (2764) Warsaw 2010}) 13. Bg5 {[%emt 0:06:33]} Nb6 {[%emt 0:02:22]} 14. Ne5 {[%emt 0:03:53] LiveBook: 5 Games} Nbd5 {[%emt 0:02:08]} 15. Qd3 {[%emt 0:04:56]} Nxc3 {[%emt 0:02:05]} 16. bxc3 {[%emt 0:00:28]} Rc8 {[%emt 0:06:38]} 17. Rad1 {[%emt 0:08:39]} Bd5 $146 {[%emt 0:06:35]} ({Predecessor:} 17... Nd5 18. Bd2 Bg5 19. c4 Bxd2 20. Qxd2 bxc4 {½-½ (20) Vujicic,M (2299)-Lecic,P (2166) Belgrade 2011}) 18. Bb1 {[%emt 0:03:53]} g6 {[%emt 0:00:55]} 19. Qh3 {[%emt 0:02:35]} Nh5 {[%emt 0:16:57]} 20. Bh6 {[%emt 0:06:27]} Re8 {[%emt 0:01:05]} 21. Qg4 {[%emt 0:10:27]} f5 $19 {[%emt 0:02:08]} ({Stronger than} 21... Rxc3 22. Bxg6 fxg6 {[#]} 23. Nxg6 $1 $11 {[%mdl 512]}) ({Inferior is} 21... Bxa3 22. Nxg6 $1 {[%mdl 512]} hxg6 23. Bxg6 $1 $16 {[%mdl 512]}) 22. Qh3 {[%emt 0:08:08]} Bg5 {[%emt 0:01:31]} 23. Bxg5 {[%emt 0:01:07]} Qxg5 {[%emt 0:00:03]} 24. Nf3 {[%emt 0:05:00]} Qe7 {[%emt 0:08:36]} 25. Bxf5 {[%emt 0:05:33]} Rxc3 {[%emt 0:04:18]} 26. Be4 {[%emt 0:03:04]} Bxe4 {[%emt 0:04:54]} 27. Rxe4 {[%emt 0:00:06]} Qf6 {[%emt 0:07:25]} 28. Qg4 {[%emt 0:04:22]} Qf5 {[%emt 0:03:24]} 29. Qxf5 {[%emt 0:00:52]} gxf5 {[%emt 0:00:02]} 30. Re3 {[%emt 0:03:56]} Rxe3 {[%emt 0:00:54]} 31. fxe3 {[%emt 0:00:01]} Rc8 {[%emt 0:00:27]} 32. Rd3 {[%emt 0:01:54]} Nf6 {[%emt 0:01:04]} 33. Kf2 {[%emt 0:01:25]} Rc2+ {[%emt 0:01:32]} 34. Kf1 {[%emt 0:02:22]} Kf7 {[%emt 0:02:24]} 35. Ne1 {[%emt 0:00:09]} Ra2 {[%emt 0:01:28]} 36. Rc3 {[%emt 0:01:10]} Nd5 {[%emt 0:01:20]} 37. Rb3 {[%emt 0:00:34]} a5 {[%emt 0:04:00]} 38. Rxb5 {[%emt 0:03:41]} Nxe3+ {[%emt 0:00:35]} 39. Kg1 {[%emt 0:00:05]} Rxa3 {[%emt 0:01:54]} 40. Rb7+ {[%emt 0:01:55]} Kf6 {[%emt 0:01:13]} 41. h4 {[%emt 0:32:32]} h6 {[%emt 0:32:49]} 42. Ra7 {[%emt 0:01:13]} Ra2 {[%emt 0:12:57]} 43. Kh2 {[%emt 0:00:42]} Re2 {[%emt 0:00:00]} 44. Nf3 {[%emt 0:00:03]} Rxg2+ {[%emt 0:00:00]} 45. Kh3 {[%emt 0:00:08]} Rg7 {[%emt 0:00:00]} 46. Rxa5 {[%emt 0:00:10]} Nf1 {[%emt 0:00:00]} 0-1

[Event "ISR-ch Women 2018"]
[Site "Ma'alot-Tarshih"]
[Date "2018.12.17"]
[Round "6"]
[White "Levitan, Ronit"]
[Black "Ovechkin, Lilia"]
[Result "1-0"]
[ECO "B03"]
[WhiteElo "1875"]
[BlackElo "1779"]
[Annotator "NA"]
[PlyCount "83"]
[EventDate "2018.12.12"]
[EventType "swiss"]
[EventCountry "ISR"]
[SourceTitle "playchess.com"]
[Source "ChessBase"]
[SourceQuality "1"]
[TimeControl "40/5400+30:1800+30"]

1. e4 {[%emt 0:00:00]} Nf6 {[%emt 0:00:00]} 2. e5 {[%emt 0:00:00]} Nd5 {[%emt 0:00:01]} 3. d4 {[%emt 0:00:00]} d6 {[%emt 0:00:38]} 4. Nf3 {[%emt 0:00:19]} c6 {[%emt 0:01:51]} 5. Bc4 {[%emt 0:09:54]} Bg4 {[%emt 0:16:55]} 6. Nc3 {[%emt 0:12:52]} e6 {[%emt 0:06:59]} 7. Nxd5 {[%emt 0:10:40]} exd5 {[%emt 0:03:02]} 8. Be2 {[%emt 0:02:46]} Bxf3 {[%emt 0:05:25]} 9. Bxf3 {[%emt 0:00:05]} dxe5 {[%emt 0:01:02]} 10. dxe5 {[%emt 0:00:05]} Nd7 {[%emt 0:01:42]} 11. Bf4 {[%emt 0:02:15]} Qb6 {[%emt 0:09:42]} 12. Rb1 {[%emt 0:05:35]} Bc5 {[%emt 0:04:30]} 13. O-O {[%emt 0:00:57]} O-O {[%emt 0:00:40]} 14. c4 {[%emt 0:16:49]} Bd4 {[%emt 0:16:45]} 15. cxd5 {[%emt 0:00:59]} cxd5 {[%emt 0:03:39]} 16. Bxd5 {[%emt 0:00:32]} Nxe5 {[%emt 0:07:30]} 17. Be4 {[%emt 0:15:51]} Qf6 {[%emt 0:02:56]} 18. Bg3 {[%emt 0:01:00]} Rad8 {[%emt 0:01:28]} 19. Qh5 {[%emt 0:00:48]} g6 {[%emt 0:03:35]} 20. Qh6 {[%emt 0:00:39]} b6 {[%emt 0:01:51]} 21. Bh4 {[%emt 0:02:07]} Qe6 {[%emt 0:02:03]} 22. Bxd8 {[%emt 0:00:17]} Ng4 {[%emt 0:01:46]} 23. Qh3 {[%emt 0:04:51]} Qxe4 {[%emt 0:01:20]} 24. Bh4 {[%emt 0:00:16]} f5 {[%emt 0:01:22]} 25. Qb3+ {[%emt 0:02:47]} Kg7 {[%emt 0:00:21]} 26. Rbe1 {[%emt 0:02:00]} Qf4 {[%emt 0:01:13]} 27. Bg3 {[%emt 0:00:47]} Qg5 {[%emt 0:00:50]} 28. Qb4 {[%emt 0:01:40]} Bc5 {[%emt 0:00:37]} 29. Qc3+ {[%emt 0:01:05]} Kg8 {[%emt 0:01:00]} 30. Qc4+ {[%emt 0:00:17]} Kg7 {[%emt 0:00:09]} 31. b4 {[%emt 0:01:25]} f4 {[%emt 0:01:17]} 32. bxc5 {[%emt 0:00:13]} fxg3 {[%emt 0:00:07]} 33. Qc3+ {[%emt 0:00:32]} Kh6 {[%emt 0:00:27]} 34. Qxg3 {[%emt 0:01:21]} bxc5 {[%emt 0:00:09]} 35. h3 {[%emt 0:00:17]} Nf6 {[%emt 0:02:35]} 36. Qxg5+ {[%emt 0:00:09]} Kxg5 {[%emt 0:00:03]} 37. Re5+ {[%emt 0:00:11]} Kf4 {[%emt 0:00:26]} 38. Rxc5 {[%emt 0:00:08]} Rf7 {[%emt 0:00:50]} 39. Rb1 {[%emt 0:00:49]} Ke4 {[%emt 0:00:29]} 40. Rb4+ {[%emt 0:01:08]} Kd3 {[%emt 0:00:07]} 41. Rf4 {[%emt 0:30:49]} g5 {[%emt 0:02:54]} 42. Rf3+ {[%emt 0:00:00]} 1-0

[Event "ISR-ch Women 2018"]
[Site "Ma'alot-Tarshih"]
[Date "2018.12.17"]
[Round "6"]
[White "Orian, Noga"]
[Black "Shaul Zeidner, Lyad"]
[Result "1-0"]
[ECO "D61"]
[WhiteElo "1343"]
[BlackElo "1671"]
[Annotator "NA"]
[PlyCount "149"]
[EventDate "2018.12.12"]
[EventType "swiss"]
[EventCountry "ISR"]
[SourceTitle "playchess.com"]
[Source "ChessBase"]
[SourceQuality "1"]
[TimeControl "40/5400+30:1800+30"]

1. d4 {[%emt 0:00:00]} d5 {[%emt 0:00:00]} 2. c4 {[%emt 0:00:00]} e6 {[%emt 0:00:00]} 3. Nc3 {[%emt 0:00:00]} Nf6 {[%emt 0:00:12]} 4. Bg5 {[%emt 0:00:00]} Be7 {[%emt 0:00:07]} 5. e3 {[%emt 0:00:04]} Nbd7 {[%emt 0:00:58]} 6. Nf3 {[%emt 0:00:58]} c6 {[%emt 0:00:26]} 7. Bd3 {[%emt 0:01:25]} O-O {[%emt 0:01:12]} 8. O-O {[%emt 0:00:30]} Re8 {[%emt 0:01:41]} 9. Qc2 {[%emt 0:01:17]} h6 {[%emt 0:00:48]} 10. Bf4 {[%emt 0:00:53]} b6 {[%emt 0:11:25]} 11. cxd5 {[%emt 0:04:50]} exd5 {[%emt 0:06:01]} 12. Nb5 {[%emt 0:03:59]} Bb7 {[%emt 0:00:29]} 13. Nc7 {[%emt 0:00:55]} Rc8 {[%emt 0:00:48]} 14. Nxe8 {[%emt 0:00:13]} Qxe8 {[%emt 0:00:02]} 15. Rac1 {[%emt 0:02:09]} Nh5 {[%emt 0:07:17]} 16. Qa4 {[%emt 0:04:36]} a5 {[%emt 0:02:10]} 17. Bg3 {[%emt 0:01:40]} Nxg3 {[%emt 0:01:07]} 18. hxg3 {[%emt 0:00:03]} g6 {[%emt 0:03:01]} 19. a3 {[%emt 0:09:08]} Bd6 {[%emt 0:01:48]} 20. Rfe1 {[%emt 0:02:57]} f5 {[%emt 0:01:49]} 21. Qd1 {[%emt 0:07:09]} Qf7 {[%emt 0:08:37]} 22. Qe2 {[%emt 0:02:09]} Re8 {[%emt 0:09:20]} 23. Qc2 {[%emt 0:03:27]} Nf6 {[%emt 0:06:10]} 24. Qb3 {[%emt 0:03:37]} b5 {[%emt 0:01:19]} 25. Qc3 {[%emt 0:05:02]} b4 {[%emt 0:02:38]} 26. Qb3 {[%emt 0:00:44]} Rb8 {[%emt 0:04:16]} 27. Qa4 {[%emt 0:02:20]} Qc7 {[%emt 0:06:42]} 28. axb4 {[%emt 0:43:55]} Bxb4 {[%emt 0:01:47]} 29. Re2 {[%emt 0:00:00]} Nd7 {[%emt 0:03:52]} 30. Bb5 {[%emt 0:00:00]} Nb6 {[%emt 0:04:46]} 31. Qc2 {[%emt 0:00:00]} Qd6 {[%emt 0:06:17]} 32. Bd3 {[%emt 0:00:00]} Rf8 {[%emt 0:03:14]} 33. Ne5 {[%emt 0:00:00]} Rf6 {[%emt 0:01:04]} 34. Qd1 {[%emt 0:00:00]} Nc8 {[%emt 0:01:34]} 35. Rec2 {[%emt 0:00:00]} Na7 {[%emt 0:01:06]} 36. Be2 {[%emt 0:00:00]} h5 {[%emt 0:01:40]} 37. Nd3 {[%emt 0:00:00]} Qf8 {[%emt 0:01:44]} 38. Nxb4 {[%emt 0:00:00]} Qxb4 {[%emt 0:00:16]} 39. Qd2 {[%emt 0:00:00]} Qa4 {[%emt 0:01:14]} 40. Rc5 {[%emt 0:00:00]} Nb5 {[%emt 0:00:29]} 41. Bxb5 {[%emt 0:19:00]} cxb5 {[%emt 0:30:02]} 42. Qc3 {[%emt 0:07:29]} b4 {[%emt 0:00:41]} 43. Qc2 {[%emt 0:00:16]} Qxc2 {[%emt 0:00:30]} 44. R1xc2 {[%emt 0:00:04]} Ra6 {[%emt 0:00:01]} 45. Rc7 {[%emt 0:00:55]} Rb6 {[%emt 0:00:15]} 46. R2c5 {[%emt 0:01:31]} a4 {[%emt 0:00:22]} 47. Ra5 {[%emt 0:00:59]} a3 {[%emt 0:01:11]} 48. bxa3 {[%emt 0:00:45]} b3 {[%emt 0:00:08]} 49. Rc1 {[%emt 0:00:45]} Ba6 {[%emt 0:00:20]} 50. Rb1 {[%emt 0:02:51]} b2 {[%emt 0:00:25]} 51. Rxa6 {[%emt 0:00:31]} Rxa6 {[%emt 0:00:01]} 52. Rxb2 {[%emt 0:00:10]} Rxa3 {[%emt 0:00:09]} 53. Kf1 {[%emt 0:00:17]} Ra7 {[%emt 0:00:44]} 54. Rb6 {[%emt 0:00:25]} Kf7 {[%emt 0:00:19]} 55. Rd6 {[%emt 0:00:11]} Ra5 {[%emt 0:00:40]} 56. Ke2 {[%emt 0:01:00]} Kg7 {[%emt 0:01:11]} 57. Rc6 {[%emt 0:01:31]} Ra7 {[%emt 0:00:42]} 58. Kf3 {[%emt 0:01:04]} g5 {[%emt 0:00:52]} 59. Rc5 {[%emt 0:00:55]} Rd7 {[%emt 0:00:14]} 60. Ke2 {[%emt 0:00:17]} Rd6 {[%emt 0:00:20]} 61. f3 {[%emt 0:00:33]} Kf6 {[%emt 0:00:26]} 62. Kd3 {[%emt 0:02:28]} Ke6 {[%emt 0:00:48]} 63. e4 {[%emt 0:01:18]} g4 {[%emt 0:01:04]} 64. exd5+ {[%emt 0:00:58]} Rxd5 {[%emt 0:00:07]} 65. Rxd5 {[%emt 0:00:18]} Kxd5 {[%emt 0:00:01]} 66. fxg4 {[%emt 0:00:09]} hxg4 {[%emt 0:00:08]} 67. Ke3 {[%emt 0:00:08]} Kc4 {[%emt 0:00:52]} 68. Kf4 {[%emt 0:00:19]} Kxd4 {[%emt 0:00:03]} 69. Kxf5 {[%emt 0:00:09]} Kd5 {[%emt 0:00:16]} 70. Kxg4 {[%emt 0:00:07]} Ke6 {[%emt 0:00:23]} 71. Kh5 {[%emt 0:00:06]} Kf7 {[%emt 0:00:12]} 72. Kh6 {[%emt 0:00:08]} Kg8 {[%emt 0:00:32]} 73. g4 {[%emt 0:00:07]} Kh8 {[%emt 0:00:14]} 74. g5 {[%emt 0:00:05]} Kg8 {[%emt 0:00:14]} 75. g6 {[%emt 0:00:04]} 1-0

[Event "ISR-ch Women 2018"]
[Site "Ma'alot-Tarshih"]
[Date "2018.12.18"]
[Round "7"]
[White "Klinova, Masha"]
[Black "Nesterovskaya, Anzhelika"]
[Result "1/2-1/2"]
[ECO "B06"]
[WhiteElo "2267"]
[BlackElo "2130"]
[Annotator "NA"]
[PlyCount "50"]
[EventDate "2018.12.11"]
[EventType "swiss"]
[EventCountry "ISR"]
[SourceTitle "playchess.com"]
[Source "ChessBase"]
[SourceQuality "1"]
[TimeControl "40/5400+30:1800+30"]

1. e4 {[%emt 0:00:00]} c5 {[%emt 0:00:00]} 2. Nf3 {[%emt 0:00:00]} g6 {[%emt 0:00:00]} 3. c3 {[%emt 0:00:50]} d5 {[%emt 0:00:33]} 4. exd5 {[%emt 0:00:48]} Qxd5 {[%emt 0:00:15]} 5. d4 {[%emt 0:00:15]} Bg7 {[%emt 0:00:54]} 6. Be2 {[%emt 0:06:16]} cxd4 {[%emt 0:07:04]} 7. cxd4 {[%emt 0:01:27]} Nf6 {[%emt 0:00:18]} 8. Nc3 {[%emt 0:00:12]} Qa5 {[%emt 0:00:29]} 9. O-O {[%emt 0:02:08]} O-O {[%emt 0:00:17]} 10. Bf4 {[%emt 0:06:50]} Nc6 {[%emt 0:13:59]} 11. Qb3 {[%emt 0:04:22]} Qb4 {[%emt 0:07:35]} 12. Qxb4 {[%emt 0:14:03]} Nxb4 {[%emt 0:00:05]} 13. a3 {[%emt 0:05:58]} Nbd5 {[%emt 0:01:06]} 14. Be5 {[%emt 0:00:06]} Rd8 {[%emt 0:22:43]} 15. Rfe1 {[%emt 0:14:15]} b6 $11 {[%emt 0:12:32]} 16. Nxd5 {[%emt 0:12:33]} Nxd5 {[%emt 0:04:29]} 17. Bc4 {[%emt 0:02:26]} Bh6 {[%emt 0:05:04]} 18. Bg3 {[%emt 0:02:42]} Kf8 {[%emt 0:06:33]} 19. h4 {[%emt 0:05:29]} f6 {[%emt 0:02:16]} 20. Re2 {[%emt 0:04:23]} a6 {[%emt 0:03:50]} 21. Bxd5 {[%emt 0:10:58]} Rxd5 {[%emt 0:01:11]} 22. Bc7 {[%emt 0:00:05]} b5 {[%emt 0:00:04]} 23. Bb6 {[%emt 0:00:06]} Kf7 {[%emt 0:00:38]} 24. Bc5 {[%emt 0:00:42]} e6 {[%emt 0:00:41]} 25. b4 {[%emt 0:01:12]} Bb7 {[%emt 0:01:35]} 1/2-1/2